Workbook

Sheet Flux de trésorerie sur 12 mois
A2: Flux de trésorerie sur douze mois | O2: Début exercice comptable : | P2: 2013-07-01
A3: Nom de la société
A4: Adresse, ville, état, code postal
A5: Téléphone, adresse de messagerie, adresse web
B7: Début | C7: =ExerciceComptable -> 2013-07-01 | D7: =DATE(YEAR(C7),MONTH(C7)+1,1) -> 2013-08-01 | E7: =DATE(YEAR(D7),MONTH(D7)+1,1) -> 2013-09-01 | F7: 2013-10-01 | G7: 2013-11-01 | H7: 2013-12-01 | I7: 2014-01-01 | J7: 2014-02-01 | K7: 2014-03-01 | L7: 2014-04-01 | M7: 2014-05-01 | N7: 2014-06-01 | O7: Moyenne mensuelle | P7: Résumé
A8: Synthèse
A10: Disponibilités (début du mois) | B10: 55,000 | C10: =IF(Encaissements[[#Totals],[Colonne3]]+Décaissements[[#Totals],[Colonne3]]=0,"",B12) -> 67,593 | D10: =IF(Encaissements[[#Totals],[Colonne4]]+Décaissements[[#Totals],[Colonne4]]=0,"",C12) -> 54,265 | E10: =IF(Encaissements[[#Totals],[Colonne5]]+Décaissements[[#Totals],[Colonne5]]=0,"",D12) -> 55,739 | F10: =IF(Encaissements[[#Totals],[Colonne6]]+Décaissements[[#Totals],[Colonne6]]=0,"",E12) -> 69,290 | G10: =IF(Encaissements[[#Totals],[Colonne7]]+Décaissements[[#Totals],[Colonne7]]=0,"",F12) -> 65,618 | H10: =IF(Encaissements[[#Totals],[Colonne8]]+Décaissements[[#Totals],[Colonne8]]=0,"",G12) ->  | I10: =IF(Encaissements[[#Totals],[Colonne9]]+Décaissements[[#Totals],[Colonne9]]=0,"",H12) ->  | J10: =IF(Encaissements[[#Totals],[Colonne10]]+Décaissements[[#Totals],[Colonne10]]=0,"",I12) ->  | K10: =IF(Encaissements[[#Totals],[Colonne11]]+Décaissements[[#Totals],[Colonne11]]=0,"",J12) ->  | L10: =IF(Encaissements[[#Totals],[Colonne12]]+Décaissements[[#Totals],[Colonne12]]=0,"",K12) ->  | M10: =IF(Encaissements[[#Totals],[Colonne13]]+Décaissements[[#Totals],[Colonne13]]=0,"",L12) ->  | N10: =IF(Encaissements[[#Totals],[Colonne14]]+Décaissements[[#Totals],[Colonne14]]=0,"",M12) ->  | O10: =IFERROR(AVERAGE(Synthèse[[#This Row],[Colonne3]:[Colonne14]]),"") -> 62,501
A11: Trésorerie disponible (disponibilités + encaissements, avant décaissements) | B11: =SUM(B10,Encaissements[[#Totals],[Colonne2]]) -> 67,593 | C11: =IF(C10="","",SUM(C10,Encaissements[[#Totals],[Colonne3]])) -> 76,065 | D11: =IF(D10="","",SUM(D10,Encaissements[[#Totals],[Colonne4]])) -> 83,301 | E11: =IF(E10="","",SUM(E10,Encaissements[[#Totals],[Colonne5]])) -> 91,032 | F11: =IF(F10="","",SUM(F10,Encaissements[[#Totals],[Colonne6]])) -> 89,662 | G11: =IF(G10="","",SUM(G10,Encaissements[[#Totals],[Colonne7]])) -> 76,200 | H11: =IF(H10="","",SUM(H10,Encaissements[[#Totals],[Colonne8]])) ->  | I11: =IF(I10="","",SUM(I10,Encaissements[[#Totals],[Colonne9]])) ->  | J11: =IF(J10="","",SUM(J10,Encaissements[[#Totals],[Colonne10]])) ->  | K11: =IF(K10="","",SUM(K10,Encaissements[[#Totals],[Colonne11]])) ->  | L11: =IF(L10="","",SUM(L10,Encaissements[[#Totals],[Colonne12]])) ->  | M11: =IF(M10="","",SUM(M10,Encaissements[[#Totals],[Colonne13]])) ->  | N11: =IF(N10="","",SUM(N10,Encaissements[[#Totals],[Colonne14]])) ->  | O11: =IFERROR(AVERAGE(Synthèse[[#This Row],[Colonne3]:[Colonne14]]),"") -> 83,252
A12: Situation de trésorerie (fin du mois) | B12: =(B11-Décaissements[[#Totals],[Colonne2]]) -> 67,593 | C12: =IFERROR(C11-Décaissements[[#Totals],[Colonne3]],"") -> 54,265 | D12: =IFERROR(D11-Décaissements[[#Totals],[Colonne4]],"") -> 55,739 | E12: =IFERROR(E11-Décaissements[[#Totals],[Colonne5]],"") -> 69,290 | F12: =IFERROR(F11-Décaissements[[#Totals],[Colonne6]],"") -> 65,618 | G12: =IFERROR(G11-Décaissements[[#Totals],[Colonne7]],"") -> 51,413 | H12: =IFERROR(H11-Décaissements[[#Totals],[Colonne8]],"") ->  | I12: =IFERROR(I11-Décaissements[[#Totals],[Colonne9]],"") ->  | J12: =IFERROR(J11-Décaissements[[#Totals],[Colonne10]],"") ->  | K12: =IFERROR(K11-Décaissements[[#Totals],[Colonne11]],"") ->  | L12: =IFERROR(L11-Décaissements[[#Totals],[Colonne12]],"") ->  | M12: =IFERROR(M11-Décaissements[[#Totals],[Colonne13]],"") ->  | N12: =IFERROR(N11-Décaissements[[#Totals],[Colonne14]],"") ->  | O12: =IFERROR(AVERAGE(Synthèse[[#This Row],[Colonne3]:[Colonne14]]),"") -> 59,265
A14: Encaissements
A15: Ventes au comptant | B15: 5,616 | C15: 3,889 | D15: 24,411 | E15: 31,642 | F15: 14,647 | G15: 3,034 | O15: =IFERROR(AVERAGE(Encaissements[[#This Row],[Colonne3]:[Colonne14]]),"") -> 15,525
A16: Ensemble des comptes créditeurs | B16: 4,498 | C16: 3,493 | D16: 1,987 | E16: 1,029 | F16: 2,911 | G16: 4,234 | O16: =IFERROR(AVERAGE(Encaissements[[#This Row],[Colonne3]:[Colonne14]]),"") -> 2,731
A17: Prêt/autres apports de trésorerie | B17: 2,479 | C17: 1,090 | D17: 2,638 | E17: 2,622 | F17: 2,814 | G17: 3,314 | O17: =IFERROR(AVERAGE(Encaissements[[#This Row],[Colonne3]:[Colonne14]]),"") -> 2,496
A18: Total des encaissements | B18: =SUBTOTAL(109,Encaissements[Colonne2]) -> 12,593 | C18: =SUBTOTAL(109,Encaissements[Colonne3]) -> 8,472 | D18: =SUBTOTAL(109,Encaissements[Colonne4]) -> 29,036 | E18: =SUBTOTAL(109,Encaissements[Colonne5]) -> 35,293 | F18: =SUBTOTAL(109,Encaissements[Colonne6]) -> 20,372 | G18: =SUBTOTAL(109,Encaissements[Colonne7]) -> 10,582 | H18: =SUBTOTAL(109,Encaissements[Colonne8]) -> 0 | I18: =SUBTOTAL(109,Encaissements[Colonne9]) -> 0 | J18: =SUBTOTAL(109,Encaissements[Colonne10]) -> 0 | K18: =SUBTOTAL(109,Encaissements[Colonne11]) -> 0 | L18: =SUBTOTAL(109,Encaissements[Colonne12]) -> 0 | M18: =SUBTOTAL(109,Encaissements[Colonne13]) -> 0 | N18: =SUBTOTAL(109,Encaissements[Colonne14]) -> 0 | O18: =IFERROR(AVERAGE(Encaissements[[#Totals],[Colonne3]:[Colonne14]]),"") -> 8,646
A20: Décaissements
A21: Achats (préciser) | C21: 521 | D21: 323 | E21: 274 | F21: 451 | G21: 104 | O21: =IFERROR(AVERAGE(Décaissements[[#This Row],[Colonne3]:[Colonne14]]),"") -> 335
A22: Salaires bruts (retrait exact) | C22: 10,572 | D22: 14,514 | E22: 10,561 | F22: 13,170 | G22: 12,478 | O22: =IFERROR(AVERAGE(Décaissements[[#This Row],[Colonne3]:[Colonne14]]),"") -> 12,259
A23: Fournitures | C23: 250 | D23: 428 | E23: 165 | F23: 1,168 | G23: 345 | O23: =IFERROR(AVERAGE(Décaissements[[#This Row],[Colonne3]:[Colonne14]]),"") -> 471
A24: Réparation et entretien | C24: 0 | D24: 2,200 | E24: 163 | F24: 67 | G24: 0 | O24: =IFERROR(AVERAGE(Décaissements[[#This Row],[Colonne3]:[Colonne14]]),"") -> 486
A25: Publicité | C25: 1,100 | D25: 625 | E25: 1,356 | F25: 0 | G25: 2,560 | O25: =IFERROR(AVERAGE(Décaissements[[#This Row],[Colonne3]:[Colonne14]]),"") -> 1,128
A26: Location | C26: 3,500 | D26: 3,500 | E26: 3,500 | F26: 3,500 | G26: 3,500 | O26: =IFERROR(AVERAGE(Décaissements[[#This Row],[Colonne3]:[Colonne14]]),"") -> 3,500
A27: Services | C27: 285 | D27: 318 | E27: 151 | F27: 134 | G27: 228 | O27: =IFERROR(AVERAGE(Décaissements[[#This Row],[Colonne3]:[Colonne14]]),"") -> 223
A28: Autre (préciser) | C28: 123 | D28: 234 | E28: 123 | F28: 234 | G28: 123 | O28: =IFERROR(AVERAGE(Décaissements[[#This Row],[Colonne3]:[Colonne14]]),"") -> 167
A29: Remboursement du capital d’un prêt | C29: 4,000 | D29: 4,000 | E29: 4,000 | F29: 4,000 | G29: 4,000 | O29: =IFERROR(AVERAGE(Décaissements[[#This Row],[Colonne3]:[Colonne14]]),"") -> 4,000
A30: Achat d’immobilisations (préciser) | C30: 679 | D30: 700 | E30: 679 | F30: 650 | G30: 679 | O30: =IFERROR(AVERAGE(Décaissements[[#This Row],[Colonne3]:[Colonne14]]),"") -> 677
A31: Autres frais de démarrage | C31: 400 | D31: 350 | E31: 400 | F31: 300 | G31: 400 | O31: =IFERROR(AVERAGE(Décaissements[[#This Row],[Colonne3]:[Colonne14]]),"") -> 370
A32: Compte sous séquestre | C32: 300 | D32: 300 | E32: 300 | F32: 300 | G32: 300 | O32: =IFERROR(AVERAGE(Décaissements[[#This Row],[Colonne3]:[Colonne14]]),"") -> 300
A33: Retrait du propriétaire | C33: 70 | D33: 70 | E33: 70 | F33: 70 | G33: 70 | O33: =IFERROR(AVERAGE(Décaissements[[#This Row],[Colonne3]:[Colonne14]]),"") -> 70
A34: Total des décaissements | C34: =SUBTOTAL(109,Décaissements[Colonne3]) -> 21,800 | D34: =SUBTOTAL(109,Décaissements[Colonne4]) -> 27,562 | E34: =SUBTOTAL(109,Décaissements[Colonne5]) -> 21,742 | F34: =SUBTOTAL(109,Décaissements[Colonne6]) -> 24,044 | G34: =SUBTOTAL(109,Décaissements[Colonne7]) -> 24,787 | H34: =SUBTOTAL(109,Décaissements[Colonne8]) -> 0 | I34: =SUBTOTAL(109,Décaissements[Colonne9]) -> 0 | J34: =SUBTOTAL(109,Décaissements[Colonne10]) -> 0 | K34: =SUBTOTAL(109,Décaissements[Colonne11]) -> 0 | L34: =SUBTOTAL(109,Décaissements[Colonne12]) -> 0 | M34: =SUBTOTAL(109,Décaissements[Colonne13]) -> 0 | N34: =SUBTOTAL(109,Décaissements[Colonne14]) -> 0 | O34: =IFERROR(AVERAGE(Décaissements[[#Totals],[Colonne3]:[Colonne14]]),"") -> 9,995
A36: Données d’exploitation essentielles (informations non liées aux flux de trésorerie)
A37: Volume de ventes (en dollars) | B37: 2,000 | C37: 2,500 | D37: 2,257 | E37: 2,387 | F37: 2,664 | G37: 2,324 | O37: =IFERROR(AVERAGE(DonnéesExploitationEssentielles[[#This Row],[Colonne2]:[Colonne14]]),"") -> 2,355
A38: Comptes clients | B38: 1,500 | C38: 500 | D38: 886 | E38: 1,035 | F38: 1,775 | G38: 839 | O38: =IFERROR(AVERAGE(DonnéesExploitationEssentielles[[#This Row],[Colonne2]:[Colonne14]]),"") -> 1,089
A39: Créance irrécouvrable (fin du mois) | B39: 300 | C39: 200 | D39: 225 | E39: 269 | F39: 448 | G39: 359 | O39: =IFERROR(AVERAGE(DonnéesExploitationEssentielles[[#This Row],[Colonne2]:[Colonne14]]),"") -> 300
A40: Stock disponible (fin du mois) | O40: =IFERROR(AVERAGE(DonnéesExploitationEssentielles[[#This Row],[Colonne2]:[Colonne14]]),"") -> 
A41: Comptes fournisseurs (fin du mois) | O41: =IFERROR(AVERAGE(DonnéesExploitationEssentielles[[#This Row],[Colonne2]:[Colonne14]]),"") -> 
A42: Ammortissement | O42: =IFERROR(AVERAGE(DonnéesExploitationEssentielles[[#This Row],[Colonne2]:[Colonne14]]),"") -> 

Sheet Résumé des flux de trésorerie
J26: Points de données : | K26: 5
C27: (Faites glisser le curseur ci-dessus pour modifier le nombre total de points de données à représenter.)
